fUSD/lending_fUSD_20240813
["ID","MTS","AMOUNT","RATE_DAILY","PERIOD"]
[334741141,1723527038855,-500.0,0.00013787,2]
[334741142,1723527038865,-500.0,0.00013787,2]
[334741143,1723527038874,-500.0,0.00013787,2]
[334741144,1723527038884,-500.0,0.00013787,2]
[334741145,1723527038895,-500.0,0.00013787,2]
[334741146,1723527038905,-500.0,0.00013787,2]
[334741147,1723527038916,-500.0,0.00013787,2]
[334741148,1723527038925,-500.0,0.00013787,2]
[334741149,1723527038934,-500.0,0.00013787,2]
[334741150,1723527038945,-500.0,0.00013787,2]
[334741151,1723527038954,-596.35665727,0.00013787,2]
[334741152,1723527038964,-500.0,0.00013787,2]
[334741153,1723527038973,-500.0,0.00013787,2]
[334741154,1723527038982,-500.0,0.00013787,2]
[334741155,1723527038992,-500.0,0.00013787,2]
[334741156,1723527039002,-500.0,0.00013787,2]
[334741157,1723527039012,-500.0,0.00013787,2]
[334741158,1723527039021,-454.61712704,0.00013789,2]
[334741159,1723527039031,-454.61712704,0.00013789,2]
[334741160,1723527039040,-13117.4594,0.00013789,2]
[334741161,1723527039050,-71170.5904,0.00013789,2]
[334741162,1723527039059,-1460.28408201,0.00013797,2]
[334741163,1723527039068,-155.0,0.00013799,2]
[334741164,1723527039077,-485.22914892,0.00013799,2]
[334741165,1723527039087,-206.78622014,0.00013799,2]
[334741166,1723527039097,-298.67239716,0.00013799,2]
[334741167,1723527039106,-328.27252306,0.00013799,2]
[334741168,1723527039116,-520.17986791,0.00013799,2]
[334741169,1723527039126,-419.14897991,0.00013799,2]
[334741170,1723527039135,-520.17986791,0.00013799,2]
[334741171,1723527039147,-163261.47144217,0.000138,2]
[334741172,1723527039162,-807.35165443,0.000138,2]
[334741173,1723527039208,-870.0340065,0.000138,2]
[334741174,1723527039243,-1705.85960732,0.000138,2]
[334741175,1723527039722,-264.51117711,0.0001367,2]
[334741176,1723527039732,-243.27449517,0.00013699,2]
[334741177,1723527039741,-39.74182165,0.000138,2]
[334741178,1723527039752,-3884.44144592,0.000138,2]
[334741179,1723527039764,-7242.62200792,0.000138,2]
[334741180,1723527039779,-1247.19195163,0.000138,2]
[334741181,1723527039789,-731.17635156,0.000138,2]
[334741182,1723527039802,-1489.433276,0.000138,2]
[334741183,1723527039818,-574.03358918,0.000138,2]
[334741184,1723527039872,-516.08648536,0.000138,2]
[334741185,1723527039883,-395.48039178,0.000138,2]
[334741186,1723527039909,-600.79792946,0.00013699,2]
[334741187,1723527039919,-17869.19077577,0.000138,2]
[334741188,1723527039931,-730.07124766,0.000138,2]
[334741189,1723527039942,-7429.85952086,0.000138,2]
[334741203,1723527042793,-687.08646626,0.00013579,2]
[334741205,1723527042802,-36205.95442429,0.000138,2]
[334741206,1723527042812,-1000.0,0.000138,5]
[334741207,1723527042822,-70269.43338058,0.000138,2]
[334741208,1723527042834,-88385.68194942,0.000138,2]
[334741209,1723527042843,-380.35876131,0.00013825,2]
[334741210,1723527042853,-218.92791442,0.00013825,2]
[334741212,1723527042863,-500.0,0.0001383,2]
[334741215,1723527042872,-357.4813523,0.00013859,2]
[334741217,1723527042881,-167.57082198,0.00013879,2]
[334741219,1723527042891,-522.31108657,0.00013889,2]
[334741220,1723527042900,-156.19459385,0.00013889,2]
[334741221,1723527042910,-152.41,0.0001389,2]
[334741222,1723527042920,-313.75141166,0.00013899,2]
[334741223,1723527042929,-294.68873713,0.00013899,2]
[334741224,1723527042939,-172.00474581,0.000139,2]
[334741225,1723527042950,-2100.0,0.000139,5]
[334741226,1723527042960,-123980.462394,0.000139,2]
[334741227,1723527042969,-7500.0,0.000139,2]
[334741228,1723527042979,-212.46296054,0.000139,2]
[334741229,1723527042989,-420.36124782,0.00013931,2]
[334741230,1723527042999,-20663.4103989,0.00013947,2]
[334741231,1723527043008,-151.0,0.00013957,2]
[334741232,1723527043017,-971.8082126,0.00013967,2]
[334741233,1723527043026,-435.0585209,0.0001397,2]
[334741234,1723527043035,-702.71161513,0.0001397,2]
[334741235,1723527043045,-2331.1416195,0.0001397,2]
[334741237,1723527043054,-9142.1904291,0.0001397,2]
[334741238,1723527043064,-151.59,0.00013973,2]
[334741239,1723527043073,-178.16,0.00013973,2]
[334741240,1723527043083,-843.09,0.00013973,2]
[334741241,1723527043093,-581.4,0.00013973,2]
[334741242,1723527043103,-236.37741696,0.00013973,2]
[334741243,1723527043112,-150.0,0.00013973,2]
[334741244,1723527043121,-150.0,0.00013973,2]
[334741245,1723527043131,-188.71245592,0.00013973,2]
[334741246,1723527043141,-150.0,0.00013973,2]
[334741247,1723527043151,-150.0,0.00013973,2]
[334741248,1723527043160,-150.0,0.00013973,2]
[334741249,1723527043170,-164.41632778,0.00013979,2]
[334741250,1723527043179,-20663.4103989,0.0001398,2]
[334741251,1723527043189,-1406.25774236,0.00013986,2]
[334741252,1723527043202,-921.63590723,0.00013986,2]
[334741253,1723527043212,-313.30908928,0.00013986,2]
[334741254,1723527043222,-20663.4103989,0.00013989,2]
[334741255,1723527043231,-41326.8207979,0.0001399,2]
[334741256,1723527043240,-165.52184477,0.00013996,2]
[334741257,1723527043250,-32559.97815021,0.00014,4]
[334741258,1723527043262,-3007.80837597,0.00014,4]
[334741259,1723527043273,-1271.78464293,0.00014,4]
[334741260,1723527043284,-840.64392545,0.00014,4]
[334741261,1723527043296,-822.33658662,0.00014,4]
[334741262,1723527043308,-301.616,0.00014,4]
[334741263,1723527045808,-741.66667229,0.00013538,2]
[334741265,1723527056916,150.0,0.00012866,2]
[334741267,1723527113341,269.73,0.00011238,2]
[334741269,1723527136954,2342.04182094,0.00012928,2]
[334741270,1723527154056,1229.38715151,0.00024932,60]
[334741271,1723527432476,1008.0,0.00013,10]
[334741273,1723527572486,200.54,0.00012925,2]
[334741277,1723527632800,256.24,0.00011003,2]
[334741278,1723527652543,590.08,0.00012871,2]
[334741279,1723527919024,494.792,0.00012866,2]
[334741280,1723527928652,368.08,0.00012923,2]
[334741281,1723527939394,150.0,0.00012866,2]
[334741282,1723528010620,723.4767735,0.00012995,2]
[334741283,1723528032233,197.1552014,0.00012995,2]
[334741292,1723528064484,2342.04182094,0.00012928,2]
[334741293,1723528085923,203.6,0.00012822,2]
[334741294,1723528100495,17675.70163867,0.00013,2]
[334741295,1723528129571,243.42,0.00010895,2]
[334741296,1723528145992,567.2663755,0.00013,2]
[334741360,1723528231566,-619.87782742,0.00013,2]
[334741361,1723528231576,-351.08680551,0.00013066,2]
[334741362,1723528231740,-64.45717733,0.00013066,2]
[334741363,1723528231749,-283.31370231,0.00013125,2]
[334741364,1723528231761,-76.1331714,0.00013125,2]
[334741365,1723528231770,-359.44687371,0.00013125,2]
[334741366,1723528231781,-485.22914892,0.00013133,2]
[334741367,1723528231790,-30.53169655,0.00013133,2]
[334741380,1723528237654,-349.82706476,0.00013133,2]
[334741381,1723528237664,-243.42,0.00013159,2]
[334741382,1723528237673,-1406.25774236,0.00013165,2]
[334741383,1723528237683,-522.31108657,0.00013165,2]
[334741384,1723528237693,-300.0,0.00013198,2]
[334741385,1723528237703,-522.31108657,0.00013199,2]
[334741386,1723528237713,-527.93,0.00013236,2]
[334741387,1723528237722,-150.0,0.00013288,2]
[334741388,1723528237732,-1062.49,0.00013309,2]
[334741389,1723528237742,-7310.05065163,0.00013309,2]
[334742147,1723528246033,-211.07994478,0.00013165,2]
[334742149,1723528246042,-689.20077074,0.00013309,2]
[334744021,1723528393545,35730.46351762,0.00012928,2]
[334744022,1723528443401,184.04,0.00012672,2]
[334744026,1723528591835,550.0,0.0001,2]
[334744027,1723528592918,600.0,0.00012,2]
[334744028,1723528602869,2575.21,0.00012632,2]
[334744029,1723528655760,262.16,0.00010707,2]
[334744030,1723528655826,197.01,0.00012625,2]
[334744031,1723528655987,262.16,0.00012971,2]
[334744032,1723528671029,10464.01,0.00012606,2]
[334744034,1723528767541,1000.0,0.00012557,2]
[334744035,1723528790397,2112.04801386,0.00012928,2]
[334744036,1723528828238,250.0,0.00012552,2]
[334744037,1723528865602,2841.34337643,0.00012928,2]
[334744038,1723528914807,9272.07071128,0.00012995,2]
[334744039,1723528928561,388.08478933,0.00012997,2]
[334744040,1723528929391,184.04,0.00012569,2]
[334744041,1723528929782,420.36124782,0.00012899,2]
[334744042,1723529056065,5000.0,0.00012928,2]
[334744043,1723529155372,198.78,0.00012495,2]
[334744044,1723529158420,203.42899612,0.00012995,2]
[334744072,1723529230088,200.0,0.00012484,2]
[334744076,1723529264360,236.081213,0.00025,61]
[334744077,1723529272599,4640.06006401,0.00012966,2]
[334744078,1723529309731,235.94,0.00010559,2]
[334744079,1723529309924,235.94,0.00012823,2]
[334744080,1723529313621,255.21992957,0.00012995,2]
[334744126,1723529367697,1087.20908559,0.00027,120]
[334744127,1723529368727,1739.7277323,0.00012928,2]
[334744134,1723529431760,-155.45612317,0.00013,2]
[334744135,1723529431770,-494.95195097,0.00013133,2]
[334744136,1723529431941,-126.65101665,0.00013133,2]
[334744137,1723529431951,-476.98360421,0.00013165,2]
[334744138,1723529431960,-85.66779322,0.00013199,2]
[334744139,1723529431972,-213.00460394,0.00013199,2]
[334744140,1723529431982,-242.99916727,0.0001321,2]
[334744141,1723529431997,-726.77814273,0.0001321,2]
[334744142,1723529432009,-969.77731,0.0001325,2]
[334744143,1723529432024,-969.77731,0.0001329,2]
[334744144,1723529432033,-534.81557827,0.00013297,2]
[334744145,1723529432043,-628.70277812,0.00013297,2]
[334744146,1723529432052,-235.28884167,0.00013302,2]
[334744147,1723529432062,-291.16098413,0.00013302,2]
[334744148,1723529432071,-300.0,0.00013303,2]
[334744149,1723529432081,-347.7810104,0.00013303,2]
[334744172,1723529434031,1298.34223089,0.00012928,2]
[334744173,1723529437569,420.36124782,0.00012948,2]
[334744175,1723529437973,388.08478933,0.0001289,2]
[334744178,1723529438521,155.45612317,0.00012995,2]
[334744271,1723529439941,-628.70277812,0.00013283,2]
[334744273,1723529439951,-106.83611664,0.00013303,2]
[334744274,1723529439960,-155.31972524,0.00013303,2]
[334744275,1723529439971,-56.43801252,0.00013303,2]
[334744276,1723529439980,-305.00194793,0.00013303,2]
[334744277,1723529439989,-715.30223519,0.00013303,2]
[334744320,1723529443094,-1671.06615827,0.00013303,2]
[334744321,1723529443105,-454.61712704,0.00013303,2]
[334744322,1723529443115,-267.36463336,0.00013303,2]
[334744323,1723529443125,-150.0,0.00013308,2]
[334744324,1723529443134,-479.10146232,0.00013309,2]
[334744347,1723529446045,-1520.89853768,0.00013309,2]
[334744348,1723529446054,-969.77731,0.00013309,2]
[334744349,1723529446064,-969.77731,0.00013309,2]
[334744350,1723529446074,-2050.82834232,0.00013309,2]
[334744351,1723529446085,-250.63165768,0.00013309,2]
[334744352,1723529446094,-397.55970506,0.00013309,2]
[334744353,1723529447393,-1336.21180422,0.00013309,2]
[334744357,1723529477207,155.73849284,0.000125,2]
[334744359,1723529623681,198.78,0.00012467,2]
[334744360,1723529704851,710.269,0.00012943,2]
[334744361,1723529705785,1204.0,0.00012943,2]
[334744362,1723529706115,1673.0,0.00012943,2]
[334744363,1723529707178,21759.0,0.00012943,2]
[334744364,1723529712930,556.0,0.00012943,2]
[334744365,1723529713558,1137.693,0.00012943,2]
[334744366,1723529713998,302.5,0.00012943,2]
[334744367,1723529714151,810.0,0.00012943,2]
[334744368,1723529714489,446.0,0.00012943,2]
[334744369,1723529721820,551.0,0.00012943,2]
[334744370,1723529731560,16589.37,0.00012454,2]
[334744371,1723529736045,2704.553,0.00012943,2]
[334744372,1723529736845,1182.0,0.00012943,2]
[334744373,1723529745240,1500.0,0.00012452,5]
[334744374,1723529750707,840.0,0.00012449,2]
[334744375,1723529768083,295.32,0.00010531,2]
[334744376,1723529768309,295.32,0.00012795,2]
[334744377,1723529841802,12863.7923777,0.00013,2]
[334744378,1723529925386,420.36124782,0.00012917,2]
[334744379,1723529932375,267.36463336,0.00012995,2]
[334744380,1723529976015,243.27449517,0.00012995,2]
[334744381,1723529983538,422.81888504,0.00012995,2]
[334744382,1723530005311,5842.0,0.00012943,2]
[334744383,1723530005553,5134.0,0.00012943,2]
[334744384,1723530010517,191.27697904,0.00012995,2]
[334744385,1723530013103,21749.0,0.00012943,2]
[334744386,1723530013956,1204.0,0.00012943,2]
[334744387,1723530018232,1671.0,0.00012943,2]
[334744388,1723530019498,328.27252306,0.00012995,2]
[334744389,1723530045468,164.41632778,0.00012995,2]
[334744390,1723530046548,388.08478933,0.00012906,2]
[334744391,1723530060428,164.41632778,0.00012995,2]
[334744392,1723530072606,493.63885733,0.00012995,2]
[334744393,1723530098818,218.92791442,0.00012995,2]
[334744394,1723530106846,155.0,0.00012995,2]
[334744395,1723530114461,309.32304521,0.00012995,2]
[334744396,1723530120875,202.92272316,0.00012995,2]
[334744397,1723530128817,218.92791442,0.00012995,2]
[334744398,1723530132107,202.63,0.0001237,2]
[334744399,1723530143352,265.45661365,0.00012995,2]
[334744400,1723530150523,236.36319912,0.00012995,2]
[334744401,1723530156237,166.39780491,0.00012995,2]
[334744402,1723530220098,357.4813523,0.00012995,2]
[334744403,1723530242574,265.78,0.00010276,2]
[334744404,1723530242802,265.78,0.0001254,2]
[334744405,1723530274747,165.52184477,0.00012995,2]
[334744406,1723530279830,1406.25774236,0.00012928,2]
[334744407,1723530306531,328.0,0.00010363,2]
[334744408,1723530307221,328.0,0.00011658,2]
[334744409,1723530307285,328.0,0.00012953,2]
[334744410,1723530308716,407548.2836228,0.00011,2]
[334744411,1723530309511,528.96350263,0.00012995,2]
[334744412,1723530340334,2000.01265437,0.00012928,2]
[334744413,1723530411233,206.78622014,0.00012995,2]
[334744414,1723530418426,550.0,0.0001,2]
[334744415,1723530419509,600.0,0.00012,2]
[334744422,1723530447641,330.22671498,0.00012995,2]
[334744473,1723530589330,420.36124782,0.00012964,2]
[334744474,1723530589459,388.08478933,0.00012931,2]
[334744476,1723530611818,2889.061,0.00012943,2]
[334744477,1723530631553,5132.0,0.00012983,2]
[334744499,1723530632032,-150.0,0.00013041,2]
[334744500,1723530632042,-150.0,0.00013043,2]
[334744501,1723530632052,-150.0,0.00013044,2]
[334744502,1723530632061,-150.0,0.00013049,2]
[334744503,1723530632070,-150.0,0.0001305,2]
[334744504,1723530632080,-150.0,0.00013054,2]
[334744505,1723530632089,-150.0,0.00013062,2]
[334744506,1723530632099,-150.0,0.00013065,2]
[334744507,1723530632108,-1700.0,0.00013066,2]
[334744508,1723530632120,-412.04801386,0.00013066,2]
[334744509,1723530632131,-150.0,0.00013066,2]
[334744510,1723530632141,-150.0,0.00013067,2]
[334744511,1723530632151,-166.70552964,0.00013067,2]
[334744512,1723530632202,-396.04809333,0.00013067,2]
[334744513,1723530632213,-1728.39618865,0.00013067,2]
[334744514,1723530632239,-27708.84018838,0.00013067,2]
[334744515,1723530632248,-795.59987752,0.00013067,2]
[334744516,1723530632260,-429.8742519,0.00013067,2]
[334744517,1723530632272,-1070.57254291,0.00013067,2]
[334744518,1723530632295,-378.25609224,0.00013067,2]
[334744519,1723530632307,-1300.99,0.00013067,2]
[334744529,1723530635559,1137.0,0.00012983,2]
[334744532,1723530638185,-698.8455025,0.00013,2]
[334744533,1723530638195,-2301.1544975,0.00013067,2]
[334744534,1723530638207,-1000.0,0.00013067,2]
[334744535,1723530638417,-4863.98273793,0.00013067,2]
[334744536,1723530638428,-3326.26,0.00013067,2]
[334744537,1723530638438,-150.0,0.00013069,2]
[334744538,1723530638448,-150.0,0.00013069,2]
[334744539,1723530638459,-150.0,0.0001307,2]
[334744540,1723530638469,-150.0,0.0001307,2]
[334744541,1723530638480,-150.0,0.00013072,2]
[334744542,1723530638491,-150.0,0.00013072,2]
[334744543,1723530638502,-150.0,0.00013074,2]
[334744544,1723530638511,-150.0,0.00013076,2]
[334744545,1723530638522,-150.0,0.00013081,2]
[334744546,1723530638533,-150.0,0.00013084,2]
[334744547,1723530638542,-150.0,0.00013085,2]
[334744548,1723530638551,-150.0,0.00013087,2]
[334744549,1723530638561,-150.0,0.00013089,2]
[334744550,1723530638571,-152.59029434,0.0001309,2]
[334744551,1723530638581,-150.0,0.0001309,2]
[334744552,1723530638593,-150.0,0.00013092,2]
[334744553,1723530638603,-150.0,0.00013092,2]
[334744554,1723530638613,-150.0,0.00013092,2]
[334744577,1723530638623,-150.0,0.00013093,2]
[334744579,1723530638865,-150.0,0.00013097,2]
[334744581,1723530638876,-150.0,0.00013101,2]
[334744584,1723530638895,-150.0,0.00013102,2]
[334744586,1723530638905,-150.0,0.00013103,2]
[334744588,1723530638915,-150.0,0.00013105,2]
[334744590,1723530638925,-150.0,0.00013107,2]
[334744592,1723530638938,-150.0,0.00013114,2]
[334744594,1723530638947,-150.0,0.0001312,2]
[334744596,1723530638957,-150.0,0.0001312,2]
[334744598,1723530638967,-150.0,0.00013123,2]
[334744600,1723530638977,-150.0,0.00013124,2]
[334744602,1723530638986,-150.0,0.00013126,2]
[334744604,1723530638996,-150.0,0.00013128,2]
[334744606,1723530639006,-150.0,0.0001313,2]
[334744608,1723530639016,-150.0,0.00013131,2]
[334744610,1723530639026,-150.0,0.00013132,2]
[334744612,1723530639037,-150.0,0.00013143,2]
[334744614,1723530639047,-150.0,0.00013148,2]
[334744616,1723530639057,-150.0,0.00013149,2]
[334744618,1723530639067,-150.0,0.00013152,2]
[334744620,1723530639076,-150.0,0.00013152,2]
[334744622,1723530639086,-150.0,0.00013156,2]
[334744624,1723530639095,-150.0,0.00013159,2]
[334744626,1723530639105,-150.0,0.00013162,2]
[334744629,1723530639115,-150.0,0.00013165,2]
[334744631,1723530639125,-150.0,0.00013168,2]
[334744633,1723530639135,-150.0,0.00013169,2]
[334744635,1723530639144,-150.0,0.00013176,2]
[334744637,1723530639154,-886.42264,0.0001318,2]
[334744639,1723530639163,-150.0,0.00013181,2]
[334744641,1723530639173,-150.0,0.00013182,2]
[334744643,1723530639182,-150.0,0.00013182,2]
[334744645,1723530639192,-150.0,0.00013187,2]
[334744647,1723530639201,-150.0,0.00013187,2]
[334744649,1723530639211,-150.0,0.00013189,2]
[334744651,1723530639220,-150.0,0.00013189,2]
[334744653,1723530639230,-150.0,0.0001319,2]
[334744655,1723530639240,-150.0,0.00013195,2]
[334744657,1723530639250,-150.0,0.00013198,2]
[334744659,1723530639260,-9272.07071128,0.00013199,2]
[334744661,1723530639269,-150.0,0.000132,2]
[334744663,1723530639279,-150.0,0.000132,2]
[334744665,1723530639291,-150.0,0.000132,2]
[334744667,1723530639300,-150.0,0.000132,2]
[334744669,1723530639310,-150.0,0.00013201,2]
[334744671,1723530639320,-150.0,0.00013202,2]
[334744673,1723530639330,-150.0,0.00013202,2]
[334744675,1723530639339,-150.0,0.00013206,2]
[334744677,1723530639349,-150.0,0.00013206,2]
[334744679,1723530639359,-150.0,0.00013206,2]
[334744681,1723530639370,-150.0,0.0001321,2]
[334744683,1723530639380,-150.0,0.00013214,2]
[334744685,1723530639390,-150.0,0.00013216,2]
[334744687,1723530639400,-150.0,0.00013218,2]
[334744689,1723530639410,-150.0,0.00013219,2]
[334744691,1723530639421,-150.0,0.00013225,2]
[334744693,1723530639431,-150.0,0.00013227,2]
[334744695,1723530639441,-150.0,0.00013227,2]
[334744696,1723530639452,-150.0,0.00013231,2]
[334744697,1723530639462,-150.0,0.00013238,2]
[334744698,1723530639472,-150.0,0.00013238,2]
[334744699,1723530639482,-150.0,0.00013239,2]
[334744700,1723530639493,-150.0,0.00013239,2]
[334744701,1723530639503,-150.0,0.00013239,2]
[334744702,1723530639513,-150.0,0.00013257,2]
[334744703,1723530639523,-150.0,0.00013259,2]
[334744704,1723530639533,-150.0,0.0001326,2]
[334744705,1723530639544,-150.0,0.00013261,2]
[334744706,1723530639553,-150.0,0.00013263,2]
[334744707,1723530639563,-150.0,0.00013271,2]
[334744708,1723530639572,-150.0,0.00013272,2]
[334744710,1723530639583,-150.0,0.00013272,2]
[334744712,1723530639592,-150.0,0.00013275,2]
[334744714,1723530639602,-150.0,0.00013277,2]
[334744716,1723530639611,-150.0,0.0001328,2]
[334744718,1723530639622,-150.0,0.00013281,2]
[334744720,1723530639632,-299.99,0.00013283,2]
[334744722,1723530639644,-150.0,0.00013288,2]
[334744724,1723530639656,-150.0,0.00013296,2]
[334744726,1723530639666,-150.0,0.000133,2]
[334744728,1723530639676,-150.0,0.000133,2]
[334744730,1723530639686,-1205.0,0.000133,2]
[334744733,1723530639695,-150.0,0.00013306,2]
[334744735,1723530639705,-10763.92974696,0.00013308,2]
[334744736,1723530639714,-197.1552014,0.0001331,2]
[334744739,1723530639724,-675.48,0.00013322,2]
[334744740,1723530639733,-675.48,0.00013326,2]
[334744743,1723530639743,-675.48,0.00013329,2]
[334744745,1723530639753,-675.48,0.00013333,2]
[334744747,1723530639765,-675.48,0.00013336,2]
[334744749,1723530639775,-675.48,0.0001334,2]
[334744750,1723530639785,-675.48,0.00013343,2]
[334744752,1723530639794,-675.48,0.00013347,2]
[334744754,1723530639803,-675.48,0.0001335,2]
[334744756,1723530639813,-675.48,0.00013354,2]
[334744758,1723530639822,-675.48,0.00013357,2]
[334744760,1723530639832,-675.48,0.00013361,2]
[334744763,1723530639841,-675.48,0.00013364,2]
[334744764,1723530639851,-675.48,0.00013368,2]
[334744767,1723530639864,-675.48,0.00013372,2]
[334744769,1723530639874,-675.48,0.00013375,2]
[334744771,1723530639885,-5000.0,0.00013378,2]
[334744772,1723530639894,-675.48,0.00013379,2]
[334744775,1723530639906,-675.48,0.00013382,2]
[334744776,1723530639915,-675.48,0.00013386,2]
[334744778,1723530639925,-675.48,0.00013389,2]
[334744780,1723530639936,-1263.01629652,0.00013398,2]
[334744782,1723530639946,-155.0,0.00013479,2]
[334744784,1723530639956,-180.11002406,0.00013483,2]
[334744787,1723530639965,-485.22914892,0.00013483,2]
[334744789,1723530639976,-150.0,0.00013488,2]
[334744792,1723530639986,-380.35876131,0.00013489,2]
[334744796,1723530639996,-4101.67355152,0.00013489,2]
[334744798,1723530640006,-192.0,0.00013499,2]
[334744800,1723530640015,-20275.38395959,0.00013499,2]
[334744802,1723530640025,-264.51117711,0.0001351,2]
[334744804,1723530640037,-211.07994478,0.00013579,2]
[334744806,1723530640047,-1739.7277323,0.00013579,2]
[334744808,1723530640056,-500.0,0.00013599,2]
[334744810,1723530640065,-3764.2521,0.00013599,2]
[334744812,1723530640074,-745.2683,0.00013599,2]
[334744814,1723530640084,-1000.0,0.00013599,2]
[334744816,1723530640094,-41122.6335,0.00013599,2]
[334744818,1723530640103,-2500.0,0.00013599,2]
[334744820,1723530640113,-485.8224672,0.00013599,2]
[334744823,1723530640124,-392.2736732,0.00013599,2]
[334744825,1723530640133,-801.5619,0.0001362,2]
[334744827,1723530640143,-649.92257342,0.0001367,2]
[334744828,1723530640152,-152.41,0.00013689,2]
[334744830,1723530640162,-200.0,0.00013699,2]
[334744832,1723530640171,-434.17,0.00013699,2]
[334744834,1723530640181,-215.68,0.00013699,2]
[334744836,1723530640190,-2751.0,0.00013699,2]
[334744838,1723530640199,-3314.5799,0.00013699,2]
[334744841,1723530640209,-85899.5444,0.00013699,2]
[334744843,1723530640218,-245000.0,0.00013699,2]
[334744845,1723530640228,-151.0,0.00013699,2]
[334744846,1723530640237,-500.0,0.00013699,2]
[334744848,1723530640247,-413.93775101,0.00013699,2]
[334744851,1723530640258,-367.83418943,0.00013699,2]
[334744852,1723530640267,-500.0,0.00013699,2]
[334744854,1723530640277,-467.49710269,0.00013699,2]
[334744856,1723530640288,-263.81472918,0.00013699,2]
[334744858,1723530640298,-151.0,0.00013699,2]
[334744860,1723530640308,-25009.97380858,0.000137,2]
[334744863,1723530640317,-886.42265,0.000137,2]
[334744864,1723530640327,-962.52865844,0.0001372,2]
[334744866,1723530640336,-1405.57261627,0.00013789,2]
[334744868,1723530640346,-151.0,0.00013799,2]
[334744870,1723530640356,-456.59677609,0.00013799,2]
[334744872,1723530640365,-6658.409096,0.000138,2]
[334744874,1723530640375,-151.0,0.000138,2]
[334744876,1723530640384,-151.0,0.000138,2]
[334744878,1723530640395,-99244.8776542,0.000138,2]
[334744880,1723530640404,-157.06540395,0.00013859,2]
[334744882,1723530640414,-258.53127033,0.00013859,2]
[334744884,1723530640424,-256.3785692,0.00013873,2]
[334744886,1723530640434,-1298.34223089,0.00013879,2]
[334744888,1723530640443,-23132.50638723,0.00013879,2]
[334744890,1723530640454,-2197.74565027,0.00013887,2]
[334744893,1723530640463,-255.21992957,0.00013889,2]
[334744894,1723530640472,-2839.67106419,0.0001389,2]
[334744957,1723530641076,-302.49999997,0.0001389,2]
[334745112,1723530643089,-36555.77999754,0.0001389,2]
[334745114,1723530643099,-150.320202,0.00013894,3]
[334745116,1723530643109,-243.252047,0.00013894,3]
[334745119,1723530643118,-367.9111147,0.00013899,2]
[334745121,1723530643128,-628.70277812,0.00013899,2]
[334745123,1723530643138,-164.14081489,0.000139,2]
[334745125,1723530643148,-151.0,0.000139,2]
[334745127,1723530643157,-1000.0,0.000139,5]
[334745129,1723530643167,-1006.0,0.000139,2]
[334745131,1723530643177,-202.63,0.00013916,2]
[334745133,1723530643186,-19848.9755308,0.0001397,2]
[334745135,1723530643196,-1362.455961,0.00013973,2]
[334745137,1723530643206,-172.58,0.00013973,2]
[334745139,1723530643217,-800.93,0.00013973,2]
[334745140,1723530643227,-552.33,0.00013973,2]
[334745142,1723530643237,-151.59,0.00013973,2]
[334745144,1723530643247,-19848.9755308,0.00013979,2]
[334745146,1723530643256,-204.95419308,0.00013979,2]
[334745148,1723530643266,-542.35397122,0.00013979,2]
[334745150,1723530643276,-19848.9755308,0.0001398,2]
[334745153,1723530643290,-151.0,0.00013985,2]